[Event "93rd German Championship 2022"]
[Site "Magdeburg"]
[Date "2022.08.19"]
[Round "8.17"]
[White "Westphal, Wolfgang"]
[Black "Hourigan, Gerrit"]
[Result "0-1"]
[ECO "B51"]
[WhiteElo "2175"]
[BlackElo "2306"]
[Annotator "TA"]
[PlyCount "88"]
[EventDate "2022.08.14"]
[EventType "swiss"]
[EventCountry "GER"]
[SourceTitle "playchess.com"]
[Source "ChessBase"]
[SourceQuality "1"]
[TimeControl "40/5400+30:1800+30"]

{[%evp 18,88,26,0,29,0,0,-10,0,-16,0,8,11,-45,-66,-73,-34,-40,-27,-34,-38,-38,-38,-42,-47,-44,-39,-45,-34,-55,-27,-35,-27,-37,-12,-31,0,-22,0,-22,-5,-53,-66,-60,0,-30,0,0,0,-54,-52,-91,-81,-528,-510,-662,-594,-584,-556,-662,-657,-645,-627,-1304,-1280,-1167,-1158,-922,-879,-12833,-12826,-29991,-29992]} 1. e4 {[%emt 0:00:02]} c5 2. Nf3 {[%emt 0:00:07]} d6 {[%emt 0:00:33]} 3. Bb5+ {[%emt 0:00:09]} Nd7 {[%emt 0:00:28]} 4. d4 {[%emt 0:02:56]} cxd4 {[%emt 0:00:36]} 5. Qxd4 {[%emt 0:00:08]} a6 {[%emt 0:00:43]} 6. Bxd7+ {[%emt 0:01:01]} Bxd7 {[%emt 0:00:06]} 7. Nc3 {[%emt 0:00:12]} e5 {[%emt 0:00:23]} 8. Qd3 {[%emt 0:00:16]} h6 {[%emt 0:00:08]} 9. O-O {[%emt 0:05:59]} Nf6 {[%emt 0:01:41]} 10. a4 {[%emt 0:02:14]} Be7 {[%emt 0:02:38] B51: Sicilian: Moscow Variation (3 Bb5+) without 3...Bd7.} 11. a5 {[%emt 0:00:53]} Rc8 {[%emt 0:02:26]} 12. Be3 {[%emt 0:00:21]} Qc7 {[%emt 0:02:41] The position is equal.} 13. Nd2 {[%emt 0:04:17]} O-O {[%emt 0:06:38]} 14. Rfc1 {[%emt 0:03:45]} Be6 {[%emt 0:16:14][%cal Bd7e6,Be6d5,Bd5e4][%mdl 32] [#]} 15. Nf1 $146 {[%emt 0:11:05]} (15. Nd5 $1 $11 Nxd5 16. exd5) ({Predecessor:} 15. Nd5 Nxd5 16. exd5 Bd7 17. c4 f5 18. b4 Qd8 19. f4 Bf6 20. Rab1 Re8 21. Kh1 {0-1 (55) Popovic,D (2579)-Gopal,G (2550) Istanbul 2012}) 15... Qc6 $15 {[%emt 0:12:01]} 16. Bb6 {[%emt 0:05:22]} d5 {[%emt 0:06:06]} (16... Bc4 $5 {[%cal Rc4d3]} 17. Qf3 d5 $17) 17. exd5 {[%emt 0:00:13]} Nxd5 {[%emt 0:00:10]} 18. Nxd5 {[%emt 0:00:08]} Bxd5 {[%emt 0:00:08]} 19. Ne3 {[%emt 0:00:12]} Be4 {[%emt 0:01:50] This bishop pair is nice.} 20. Qe2 {[%emt 0:00:47]} Qg6 {[%emt 0:09:23]} 21. f3 {[%emt 0:20:44]} Bc6 {[%emt 0:01:05]} 22. c4 {[%emt 0:00:38]} Bg5 {[%emt 0:02:24]} 23. Rc3 {[%emt 0:00:49]} Rfe8 {[%emt 0:07:39]} 24. Nd5 {[%emt 0:02:00]} f5 {[%emt 0:02:21]} 25. Rd1 {[%emt 0:02:46]} Kh7 {[%emt 0:07:00]} 26. Qc2 {[%emt 0:05:12]} h5 {[%emt 0:03:12][%cal Bh6h5,Bh5h4,Bh4h3][%mdl 32]} 27. Re1 {[%emt 0:05:45]} h4 {[%emt 0:01:55]} 28. Re2 {[%emt 0:03:03]} h3 {[%emt 0:01:36]} 29. Nc7 {[%emt 0:04:08]} (29. Bc7 $11) 29... Rf8 {[%emt 0:02:54]} 30. Nd5 {[%emt 0:00:28]} Rce8 {[%emt 0:02:31]} ({But not} 30... Bxd5 31. cxd5 Rxc3 32. bxc3 $11) ({Better is} 30... hxg2 $1 $15 31. Rxg2 Qh6) 31. f4 {[%emt 0:01:07]} (31. Bc7 $5 {[%cal Rc7e5]}) 31... exf4 {[%emt 0:01:54] [#] ...hxg2 is the strong threat.} (31... Bxf4 $5 {[%cal Rh3g2]} 32. Rxh3+ Bh6 $11) 32. Rxh3+ {[%emt 0:00:14]} Kg8 {[%emt 0:00:15]} 33. Rf3 {[%emt 0:05:02]} (33. Bc5 $11 Rxe2 34. Qxe2) 33... Re4 $1 {[%emt 0:01:35]} 34. Ref2 {[%emt 0:01:52][%cal Rd5f4]} Rfe8 {[%emt 0:00:41] Strongly threatening ...Bh4.} 35. g3 {[%emt 0:01:38][%mdl 8192] [#] This costs White the game.} (35. Rf1 $17) 35... fxg3 $19 {[%emt 0:01:34]} 36. Rxg3 {[%emt 0:00:12]} Qh5 {[%emt 0:01:36]} 37. Qd3 {[%emt 0:06:42]} f4 {[%emt 0:02:57][%cal Bf5f4,Bf4f3][%mdl 32]} 38. Rgg2 {[%emt 0:00:00]} Re1+ {[%emt 0:00:30]} 39. Rf1 {[%emt 0:00:28]} f3 {[%emt 0:00:30]} ({Wrong is} 39... R8e2 $2 40. Rxe2 Rxe2 41. h3 $19) 40. Rgf2 {[%emt 0:01:36]} Qg4+ {[%emt 0:00:45]} 41. Kh1 {[%emt 0:30:23]} Rxf1+ {[%emt 0:11:03]} 42. Qxf1 {[%emt 0:00:00]} Bh4 {[%emt 0:02:51]} 43. Ne3 {[%emt 0:00:00]} Qg5 {[%emt 0:02:57]} 44. Rxf3 {[%emt 0:00:00]} Rxe3 {[%emt 0:00:29] Weighted Error Value: White=0.96/Black=0.12 (very precise)} 0-1

[Event "93rd German Championship 2022"]
[Site "Magdeburg"]
[Date "2022.08.19"]
[Round "8.19"]
[White "Koehler, Christian Friedrich"]
[Black "Pahl, Erik"]
[Result "1-0"]
[ECO "A02"]
[WhiteElo "2285"]
[BlackElo "2203"]
[Annotator "NA RC"]
[PlyCount "73"]
[EventDate "2022.08.14"]
[EventType "swiss"]
[EventCountry "GER"]
[SourceTitle "playchess.com"]
[Source "ChessBase"]
[SourceQuality "1"]
[TimeControl "40/5400+30:1800+30"]

1. f4 {[%emt 0:00:03]} c5 {[%emt 0:04:09]} 2. Nf3 {[%emt 0:00:11]} d5 {[%emt 0:00:38]} 3. b3 {[%emt 0:00:52]} Nc6 {[%emt 0:00:37]} 4. e3 {[%emt 0:00:18]} a6 {[%emt 0:00:06]} 5. Bb2 {[%emt 0:02:00]} Nf6 {[%emt 0:02:14]} 6. c4 {[%emt 0:05:11]} d4 {[%emt 0:16:09]} 7. exd4 {[%emt 0:12:17]} (7. Ne5 $11) 7... cxd4 {[%emt 0:02:59]} 8. Bd3 {[%emt 0:00:57]} Bg4 {[%emt 0:00:58]} 9. h3 {[%emt 0:04:14]} ({White should play} 9. O-O $15) 9... Bxf3 {[%emt 0:00:18]} (9... Nb4 $17 10. Bf1 {[#]} d3 $1) 10. Qxf3 {[%emt 0:00:23]} g6 {[%emt 0:00:21]} 11. Be4 {[%emt 0:12:26]} (11. Na3 $11) 11... Nxe4 {[%emt 0:06:31]} 12. Qxe4 {[%emt 0:00:12]} Bg7 {[%emt 0:00:16]} 13. O-O {[%emt 0:00:14]} O-O {[%emt 0:00:13]} 14. d3 {[%emt 0:00:16]} Qd7 {[%emt 0:06:24]} 15. Nd2 {[%emt 0:05:25]} f5 $15 {[%emt 0:00:47]} 16. Qe2 {[%emt 0:04:39]} e5 {[%emt 0:04:26]} 17. fxe5 {[%emt 0:01:08]} Bh6 {[%emt 0:02:53]} 18. Nf3 {[%emt 0:05:19]} Be3+ {[%emt 0:00:39]} 19. Kh1 {[%emt 0:00:07]} f4 {[%emt 0:05:41]} 20. Ba3 {[%emt 0:02:29]} Rf5 {[%emt 0:00:39]} 21. Bd6 {[%emt 0:00:13]} Rh5 {[%emt 0:01:50]} 22. b4 {[%emt 0:02:16]} Nd8 {[%emt 0:05:52]} 23. a4 {[%emt 0:00:39]} b6 {[%emt 0:02:01]} 24. a5 {[%emt 0:04:57]} Qb7 {[%emt 0:01:49]} 25. axb6 {[%emt 0:05:08]} g5 {[%emt 0:00:50]} 26. Ng1 {[%emt 0:00:11]} Rh4 {[%emt 0:05:38]} 27. Qf3 {[%emt 0:01:18]} g4 {[%emt 0:02:40]} 28. Qxb7 {[%emt 0:00:53]} Nxb7 {[%emt 0:00:03]} 29. c5 {[%emt 0:01:33]} Kf7 {[%emt 0:00:42]} 30. e6+ {[%emt 0:00:35]} Kxe6 {[%emt 0:00:13]} 31. Bxf4 {[%emt 0:00:11]} gxh3 {[%emt 0:00:46]} 32. Nxh3 {[%emt 0:00:08]} Kd5 {[%emt 0:00:07]} 33. Bg3 {[%emt 0:04:43]} Rh6 {[%emt 0:06:26]} 34. Rf7 {[%emt 0:03:21]} Rg8 {[%emt 0:00:43]} 35. Rxb7 {[%emt 0:04:24]} Rxg3 {[%emt 0:00:06]} 36. Rd7+ {[%emt 0:00:23]} Kc6 {[%emt 0:00:06]} 37. Rc7+ {[%emt 0:00:07]} 1-0

[Event "93rd German Championship 2022"]
[Site "Magdeburg"]
[Date "2022.08.19"]
[Round "8.20"]
[White "Becker, Stefan"]
[Black "Stricker, Florian"]
[Result "1/2-1/2"]
[ECO "B08"]
[WhiteElo "2101"]
[BlackElo "2182"]
[Annotator "NA RC"]
[PlyCount "82"]
[EventDate "2022.08.14"]
[EventType "swiss"]
[EventCountry "GER"]
[SourceTitle "playchess.com"]
[Source "ChessBase"]
[SourceQuality "1"]
[TimeControl "40/5400+30:1800+30"]

1. e4 {[%emt 0:00:04]} d6 {[%emt 0:00:05]} 2. d4 {[%emt 0:00:08]} Nf6 {[%emt 0:00:07]} 3. Nc3 {[%emt 0:00:06]} g6 {[%emt 0:00:08]} 4. Nf3 {[%emt 0:00:06]} c6 {[%emt 0:00:48]} 5. a4 {[%emt 0:00:10]} Bg7 {[%emt 0:00:33]} 6. Be2 {[%emt 0:00:07]} O-O {[%emt 0:00:19]} 7. O-O {[%emt 0:00:07]} Qc7 {[%emt 0:00:18]} 8. Bf4 {[%emt 0:00:17]} Bg4 {[%emt 0:06:36]} 9. h3 {[%emt 0:12:49]} Bxf3 {[%emt 0:01:31]} 10. Bxf3 {[%emt 0:00:03]} e5 {[%emt 0:00:36]} 11. Be3 {[%emt 0:00:11]} Re8 {[%emt 0:07:23]} 12. g3 {[%emt 0:10:31]} Na6 {[%emt 0:23:08]} 13. Bg2 {[%emt 0:07:13]} Nb4 {[%emt 0:02:30]} 14. a5 {[%emt 0:21:21]} Rad8 {[%emt 0:23:56]} 15. Ra4 {[%emt 0:13:47]} Na6 {[%emt 0:18:41]} 16. dxe5 {[%emt 0:09:13]} dxe5 {[%emt 0:00:33]} 17. Qc1 {[%emt 0:02:53]} Qb8 {[%emt 0:00:28]} 18. f4 {[%emt 0:03:03]} Nh5 {[%emt 0:02:08]} 19. Qe1 {[%emt 0:01:01]} f5 {[%emt 0:01:49]} 20. Qf2 {[%emt 0:07:12]} exf4 {[%emt 0:00:57]} 21. gxf4 {[%emt 0:00:11]} fxe4 {[%emt 0:00:49]} 22. Bxa7 {[%emt 0:00:33]} e3 {[%emt 0:01:25]} 23. Bxe3 {[%emt 0:00:31]} Rf8 {[%emt 0:00:48]} 24. Bf3 {[%emt 0:02:49]} Nf6 {[%emt 0:00:20]} 25. Raa1 {[%emt 0:00:49]} Qc8 {[%emt 0:01:30]} 26. Kg2 {[%emt 0:00:43]} Qf5 {[%emt 0:00:39]} 27. Be2 {[%emt 0:02:40]} Ne4 {[%emt 0:03:11]} 28. Nxe4 {[%emt 0:00:27]} Qxe4+ {[%emt 0:00:03]} 29. Bf3 {[%emt 0:00:13]} Qf5 {[%emt 0:00:17]} 30. c3 {[%emt 0:02:05]} Nc7 {[%emt 0:00:31]} 31. Rad1 {[%emt 0:02:17]} Rde8 {[%emt 0:00:59]} 32. Rfe1 {[%emt 0:00:29]} Ne6 {[%emt 0:01:02]} 33. Bg4 {[%emt 0:00:22]} Qxa5 {[%emt 0:00:18]} 34. Bb6 {[%emt 0:00:43]} Qa2 {[%emt 0:00:14]} 35. Bxe6+ {[%emt 0:01:52]} Rxe6 {[%emt 0:00:10]} 36. Rxe6 {[%emt 0:00:31]} Qxe6 {[%emt 0:00:08]} 37. Bd4 {[%emt 0:00:36]} Bh6 {[%emt 0:02:21]} 38. Be5 {[%emt 0:00:25]} Qf5 {[%emt 0:00:53]} 39. Rd4 {[%emt 0:00:33]} c5 {[%emt 0:00:56]} 40. Rd5 {[%emt 0:00:46]} Bxf4 {[%emt 0:00:15]} 41. Qxf4 {[%emt 0:04:59]} Qxf4 {[%emt 0:02:50]} 1/2-1/2

[Event "93rd German Championship 2022"]
[Site "Magdeburg"]
[Date "2022.08.19"]
[Round "8.21"]
[White "Keller, Peter"]
[Black "Eichstaedt, Mirko"]
[Result "1-0"]
[ECO "C84"]
[WhiteElo "2377"]
[BlackElo "2223"]
[Annotator "TA"]
[PlyCount "73"]
[EventDate "2022.08.14"]
[EventType "swiss"]
[EventCountry "GER"]
[SourceTitle "playchess.com"]
[Source "ChessBase"]
[SourceQuality "1"]
[TimeControl "40/5400+30:1800+30"]

{[%evp 13,73,18,10,0,0,0,0,0,7,7,17,17,-2,8,25,30,40,29,34,31,42,20,20,0,0,0,0,0,0,-101,-64,-82,-47,-27,-33,-34,0,0,0,0,0,0,16,0,29,29,28,20,21,24,180,165,211,166,645,641,597,583,29994,29995,29996,29997]} 1. e4 e5 2. Nf3 Nc6 3. Bb5 {[%cal Bf1b5,Bb5a4,Ba4b3,Bb3a2][%mdl 32]} a6 4. Ba4 Nf6 5. O-O Be7 6. d3 b5 7. Bb3 d6 8. a3 {C84: Closed Ruy Lopez: Unusual White 6th moves.} Na5 9. Ba2 c5 10. Nc3 {The position is equal.} Be6 11. Nh4 O-O {[%cal Of6e4]} 12. Nf5 Bxf5 13. exf5 d5 14. Bg5 {[#]} d4 $146 ({Predecessor:} 14... c4) 15. Bxf6 Bxf6 16. Ne4 Rc8 17. Qf3 c4 18. b4 cxb3 $1 19. cxb3 b4 $1 20. Rfc1 Qb6 (20... bxa3 21. Rxc8 Qxc8 22. b4 $16) 21. a4 (21. axb4 $11 {remains equal.} Nc6 22. Nxf6+ gxf6 23. Bb1) 21... Rfd8 {[%cal Oc8c3]} 22. g4 {[%cal Bg2g4,Bg4g5][%mdl 32]} h6 {[%cal Oc8c3] Against g5} 23. Qg3 $1 {[#]} Rc3 $1 {[%cal Of6g5]} 24. h4 {Prevents Bg5. Threatens to win with g5.} Rdc8 (24... Nxb3 $2 25. Bxb3 Rxb3 26. g5 hxg5 27. hxg5 $18) 25. Rd1 Kh8 26. g5 Be7 27. Qxe5 Nc6 28. Qd5 Qa5 29. Qxa5 Nxa5 30. Nxc3 dxc3 31. Re1 Bd6 {[#] This move loses the game for Black.} (31... Nc6 $1 $11) 32. Re4 $1 $18 g6 (32... Kg8 {is a better defense.} 33. d4 Kf8) 33. f6 ({Don't do} 33. gxh6 $6 gxf5 34. Rd4 Rc6 $14) 33... hxg5 $2 (33... Kg8 34. Rae1 Rd8) 34. hxg5 {Black must now prevent Kg2.} Rc5 35. f4 Rf5 36. Re8+ Kh7 37. Kg2 {Weighted Error Value: White=0.10 (very precise) /Black=0.63} 1-0

[Event "93rd German Championship 2022"]
[Site "Magdeburg"]
[Date "2022.08.20"]
[Round "9.1"]
[White "Parvanyan, Ashot"]
[Black "Costa, Leonardo"]
[Result "0-1"]
[ECO "E67"]
[WhiteElo "2428"]
[BlackElo "2316"]
[Annotator "TA"]
[PlyCount "78"]
[EventDate "2022.08.14"]
[EventType "swiss"]
[EventCountry "GER"]
[SourceTitle "playchess.com"]
[Source "ChessBase"]
[SourceQuality "1"]
[TimeControl "40/5400+30:1800+30"]

{[%evp 23,78,32,41,48,41,52,48,0,19,15,33,36,47,17,22,0,33,45,38,33,41,37,45,0,0,0,0,-10,0,-47,-52,-45,-43,-47,-47,-55,-52,-98,-47,-161,-148,-392,-368,-539,-431,-730,-612,-1651,-1618,-29979,-29980,-29988,-29979,-29987,-29987,-29991,-29989]} 1. Nf3 {[%emt 0:01:52]} Nf6 {[%emt 0:00:05]} 2. c4 {[%emt 0:00:05]} g6 {[%emt 0:00:04]} 3. g3 {[%emt 0:00:05]} Bg7 {[%emt 0:00:04]} 4. Bg2 {[%emt 0:00:05]} O-O {[%emt 0:00:04]} 5. O-O {[%emt 0:00:15]} d6 {[%emt 0:00:11]} 6. d4 {[%emt 0:00:35]} Nbd7 {[%emt 0:00:39]} 7. Nc3 {[%emt 0:00:24]} e5 {[%emt 0:00:05]} 8. h3 {[%emt 0:00:13]} Re8 {[%emt 0:00:06]} 9. e4 {[%emt 0:00:11]} exd4 {[%emt 0:00:17]} 10. Nxd4 {[%emt 0:00:06]} a6 {[%emt 0:00:04]} 11. Be3 {[%emt 0:32:40]} Rb8 {[%emt 0:00:07]} 12. a4 {[%emt 0:02:11][%cal Ba2a4,Ba4a5][%mdl 32]} Nc5 {[%emt 0:06:12]} 13. Qc2 {[%emt 0:01:11] E68: King's Indian: Fianchetto: 6...Nbd7 7 0-0 e5 8 e4.} Qe7 {[%emt 0:03:25][%cal Rc5e4]} 14. Rfe1 {[%emt 0:00:57] [#]} Bd7 $146 {[%emt 0:04:49][%cal Rf6e4]} (14... Ncxe4 $2 15. Bf4 $18 (15. Bg5 Nxg5 16. Rxe7 Rxe7 $11)) ({Predecessor:} 14... Nfxe4 15. Nxe4 Nxe4 16. Bxe4 Qxe4 17. Bd2 Qxe1+ 18. Rxe1 Rxe1+ 19. Bxe1 Bxd4 20. Qe4 Be5 {½-½ (42) Caruana,F (2770)-Berg,E (2587) Malmo 2012}) 15. Nb3 {[%emt 0:10:54]} (15. f3 $14) 15... Nxb3 {[%emt 0:05:59]} ({Don't take} 15... Ncxe4 16. Nxe4 Nxe4 17. Ba7 $16) 16. Qxb3 {[%emt 0:03:19]} Bc6 {[%emt 0:07:27]} 17. a5 {[%emt 0:04:04]} Nd7 {[%emt 0:03:20]} (17... Nxe4 $2 18. Nxe4 Qd7 19. Nc3 $18) (17... Bxe4 $2 18. Ba7 $18) 18. Nd5 {[%emt 0:11:27]} Bxd5 {[%emt 0:01:01]} 19. cxd5 {[%emt 0:00:11]} c5 {[%emt 0:03:21]} 20. dxc6 {[%emt 0:03:21]} bxc6 {[%emt 0:00:04]} 21. Qc4 {[%emt 0:00:06][%csl LRa6,LRc6]} Bxb2 {[%emt 0:15:03]} 22. Rab1 {[%emt 0:01:22]} Nc5 {[%emt 0:01:57]} 23. Bxc5 {[%emt 0:04:50]} dxc5 {[%emt 0:00:04][%cal Bd6c5,Bc5c4,Bc4c3][%mdl 32]} 24. Qxa6 {[%emt 0:00:07]} Bc3 {[%emt 0:11:17]} 25. Red1 {[%emt 0:16:47]} Qf6 {[%emt 0:04:47]} 26. Qa7 {[%emt 0:05:40]} (26. f4 $11 {might be stronger.}) 26... Rxb1 $15 {[%emt 0:09:58]} 27. Rxb1 {[%emt 0:00:02]} Bd4 {[%emt 0:00:04] [#] White must now prevent ...c4.} 28. Rf1 {[%emt 0:00:10]} c4 {[%emt 0:00:04]} 29. Qb7 {[%emt 0:00:25]} c3 {[%emt 0:00:08]} (29... Re7 {feels hotter.} 30. Qb8+ Kg7 31. a6 c3) 30. Kh2 {[%emt 0:01:05]} (30. a6 $15) 30... h5 {[%emt 0:11:05] Black is more active.} (30... Qd6 $17 {Threatens to win with ...Rb8.} 31. a6 Rb8) 31. f4 {[%emt 0:00:49]} ({White should play} 31. a6 $15 Re7 32. Qb8+ Kg7 33. f4) 31... h4 $19 {[%emt 0:00:35]} 32. e5 $2 {[%emt 0:00:29] Loses the game.} (32. Kh1 $17) 32... hxg3+ {[%emt 0:00:15]} 33. Kxg3 {[%emt 0:00:31]} (33. Kh1 $142 Qf5 34. a6) 33... Qf5 {[%emt 0:10:40] Strongly threatening ...c2.} 34. Bxc6 {[%emt 0:00:29]} (34. Bf3 $142 c2 35. Qb3 (35. Qxc6 $2 Rc8 $19)) 34... Rxe5 $1 {[%emt 0:01:10][%mdl 64] [#] Pin} 35. Qb8+ {[%emt 0:00:30]} Kg7 {[%emt 0:00:08]} 36. Qd8 {[%emt 0:00:31]} Re3+ {[%emt 0:01:06] Black mates.} 37. Rf3 {[%emt 0:00:23]} Bf6 {[%emt 0:00:41]} 38. Qc7 {[%emt 0:00:36]} Re1 {[%emt 0:00:54]} 39. Bd7 {[%emt 0:00:31]} Qb1 {[%emt 0:00:39] Weighted Error Value: White=0.72/Black=0.11 (very precise)} 0-1

[Event "93rd German Championship 2022"]
[Site "Magdeburg"]
[Date "2022.08.20"]
[Round "9.2"]
[White "Krassowizkij, Jaroslaw"]
[Black "Roseneck, Jonas"]
[Result "1/2-1/2"]
[ECO "E04"]
[WhiteElo "2428"]
[BlackElo "2384"]
[Annotator "TA"]
[PlyCount "81"]
[EventDate "2022.08.14"]
[EventType "swiss"]
[EventCountry "GER"]
[SourceTitle "playchess.com"]
[Source "ChessBase"]
[SourceQuality "1"]
[TimeControl "40/5400+30:1800+30"]

{[%evp 23,81,16,29,14,21,13,19,14,19,18,15,15,16,22,20,19,27,29,12,19,27,6,16,13,19,0,6,0,0,0,0,0,0,0,0,0,0,-43,-41,-43,-45,-63,-79,-79,-72,-79,-64,-100,-72,-140,-105,-227,-227,-230,-3,-8,-8,-90,-91,-73]} 1. d4 {[%emt 0:00:05]} Nf6 {[%emt 0:00:01]} 2. c4 {[%emt 0:00:06]} e6 {[%emt 0:00:03]} 3. Nf3 {[%emt 0:00:05]} d5 {[%emt 0:00:03]} 4. g3 {[%emt 0:00:05]} dxc4 {[%emt 0:00:03]} 5. Bg2 {[%emt 0:00:04]} c5 {[%emt 0:00:09]} 6. O-O {[%emt 0:00:07]} Nc6 {[%emt 0:00:01]} 7. dxc5 {[%emt 0:00:10]} Qxd1 {[%emt 0:00:26]} 8. Rxd1 {[%emt 0:00:04]} Bxc5 {[%emt 0:00:05]} 9. Nbd2 {[%emt 0:00:05]} c3 {[%emt 0:00:22]} 10. bxc3 {[%emt 0:00:06][%cal Bb2c3,Bc3c4][%mdl 32]} O-O {[%emt 0:00:07]} 11. Nb3 {[%emt 0:00:04]} Be7 {[%emt 0:00:03]} 12. c4 {[%emt 0:00:07]} Bd7 {[%emt 0:00:04]} 13. Bb2 {[%emt 0:00:07] E04: Open Catalan: 5 Nf3.} Rfc8 {[%emt 0:00:02]} 14. c5 {[%emt 0:00:07]} Be8 {[%emt 0:02:51]} 15. Nfd2 {[%emt 0:00:11] The position is equal.} b6 {[%emt 0:05:13]} 16. cxb6 {[%emt 0:00:31]} axb6 {[%emt 0:00:01]} 17. Nc4 {[%emt 0:00:11]} Rab8 {[%emt 0:00:01]} 18. Nd6 {[%emt 0:00:09]} Bxd6 {[%emt 0:00:01]} 19. Rxd6 {[%emt 0:00:08]} Na5 {[%emt 0:00:01]} 20. Nxa5 {[%emt 0:00:09]} bxa5 {[%emt 0:00:01]} 21. Be5 {[%emt 0:00:11]} Rb4 {[%emt 0:00:03] [#]} 22. Rd3 $146 {[%emt 0:00:22]} ({Predecessor:} 22. Rad1 h6 23. Bf3 Kh7 24. Rd8 Rxd8 25. Rxd8 Bb5 26. Ra8 Ra4 27. Bc3 Rxa2 28. Rxa5 Rxa5 29. Bxa5 {½-½ (44) Vidit,S (2723)-Praggnanandhaa,R (2619) chess24.com INT 2022}) 22... Rb5 {[%emt 0:16:13]} 23. f4 {[%emt 0:12:53]} Nd5 {[%emt 0:09:01]} 24. e4 {[%emt 0:09:07]} Nb4 {[%emt 0:01:56]} 25. Rd2 {[%emt 0:03:47]} Rbc5 {[%emt 0:10:44]} 26. Rad1 {[%emt 0:29:09]} Nc2 {[%emt 0:12:16]} 27. Kf2 {[%emt 0:13:57]} f6 {[%emt 0:00:51]} 28. Bd6 {[%emt 0:06:32]} Rc3 {[%emt 0:01:21] And now ...Ne3 would win.} 29. Rb1 {[%emt 0:07:03]} Bc6 {[%emt 0:13:37]} 30. Rb2 {[%emt 0:04:32]} Ne3 {[%emt 0:01:54]} 31. Bh3 {[%emt 0:01:36]} Kf7 {[%emt 0:01:16] White must now prevent ...Nc4.} 32. Rb8 {[%emt 0:04:11]} Rxb8 {[%emt 0:04:17]} 33. Bxb8 {[%emt 0:00:03] This bishop pair is nice.} Nc4 {[%emt 0:10:45] Prevents Rd6.} ({Reject} 33... Bxe4 34. Rd7+ Ke8 35. Rxg7 $11 (35. Bxe6 Nc4 $11)) 34. Re2 {[%emt 0:00:29]} a4 {[%emt 0:01:04][%cal Ba5a4,Ba4a3][%mdl 32]} 35. Bf1 {[%emt 0:02:31]} a3 {[%emt 0:02:26]} 36. Ba7 {[%emt 0:02:56]} (36. e5 $142) 36... Rc1 {[%emt 0:04:14]} 37. Bc5 {[%emt 0:05:17] [#] Prevents Nd6.} (37. Bg2 $17 {was necessary.}) 37... Bb5 $1 $19 {[%emt 0:03:08][%cal Oc4e5]} 38. Bb4 {[%emt 0:01:25] [#]} Nb2 $2 {[%emt 0:03:01]} ({Black should try} 38... Ra1 $1 $19 {Hoping for ...Nb6.} 39. Re1 Rxa2+ 40. Kf3 Rb2 41. Bxc4 Rxb4 42. Bxb5 Rxb5) 39. Re1 $11 {[%emt 0:00:06]} Rc2+ {[%emt 0:00:17]} 40. Kf3 {[%emt 0:00:57]} (40. Ke3 $11 {remains equal.} Bxf1 41. Rxf1) 40... Bxf1 $17 {[%emt 0:01:05]} 41. Rxf1 {[%emt 0:02:50] Weighted Error Value: White=0.18 (very precise) /Black=0.10 (very precise)} 1/2-1/2

[Event "93rd German Championship 2022"]
[Site "Magdeburg"]
[Date "2022.08.20"]
[Round "9.3"]
[White "Wachinger, Nikolas"]
[Black "Vogel, Roven"]
[Result "1/2-1/2"]
[ECO "C88"]
[WhiteElo "2437"]
[BlackElo "2465"]
[Annotator "TA"]
[PlyCount "71"]
[EventDate "2022.08.14"]
[EventType "swiss"]
[EventCountry "GER"]
[SourceTitle "playchess.com"]
[Source "ChessBase"]
[SourceQuality "1"]
[TimeControl "40/5400+30:1800+30"]

{[%evp 16,71,15,23,31,30,30,15,30,17,12,4,26,21,23,22,34,21,20,22,58,51,55,49,67,38,45,45,54,20,20,14,20,45,83,89,105,60,81,12,11,0,0,0,0,0,18,15,14,0,29,29,50,0,25,0,33,0]} 1. e4 {[%emt 0:00:51]} e5 {[%emt 0:00:02]} 2. Nf3 {[%emt 0:00:42]} Nc6 {[%emt 0:00:16]} 3. Bb5 {[%emt 0:00:23]} a6 {[%emt 0:00:11]} 4. Ba4 {[%emt 0:00:15]} Nf6 {[%emt 0:00:11]} 5. O-O {[%emt 0:00:18]} Be7 {[%emt 0:00:08]} 6. Re1 {[%emt 0:00:20]} b5 {[%emt 0:00:10]} 7. Bb3 {[%emt 0:00:07]} O-O {[%emt 0:00:10]} 8. h3 {[%emt 0:00:29]} Bb7 {[%emt 0:00:18]} 9. d3 {[%emt 0:00:19]} d5 {[%emt 0:00:36] C88: Closed Ruy Lopez: Anti-Marshall Systems.} 10. exd5 {[%emt 0:03:20]} Nxd5 {[%emt 0:00:20]} 11. Nbd2 {[%emt 0:00:08] 11.a4 is becoming the main line.} Nd4 {[%emt 0:19:01] The position is equal.} 12. a4 {[%emt 0:01:36]} Nxb3 {[%emt 0:12:06]} 13. Nxb3 {[%emt 0:02:37]} c5 {[%emt 0:03:29]} 14. axb5 {[%emt 0:12:34]} axb5 {[%emt 0:00:35]} 15. Rxa8 {[%emt 0:00:11]} Bxa8 {[%emt 0:02:04] A strong pair of Bishops.} 16. Nxe5 {[%emt 0:03:34]} f6 {[%emt 0:03:01] [#]} 17. Nf3 $146 {[%emt 0:02:10]} ({Predecessor:} 17. Ng4 Qd7 18. d4 c4 19. Nc5 Bxc5 20. dxc5 Qc6 21. Qf3 Qxc5 22. Nh6+ Kh8 23. Qg4 {½-½ (29) Navara,D (2691)-Wojtaszek,R (2691) Legnica 2021}) 17... Nb4 {[%emt 0:02:15]} 18. Bd2 {[%emt 0:26:03]} Nc6 {[%emt 0:22:34][%cal Bb4c6,Bc6b4,Bb4d3][%mdl 32]} 19. Bf4 {[%emt 0:05:41]} Rf7 {[%emt 0:01:51]} 20. d4 {[%emt 0:04:31] White is more active.} c4 {[%emt 0:05:03]} 21. Nc5 {[%emt 0:01:06] Threatens to win with Ne6.} Nb4 {[%emt 0:01:22]} 22. c3 {[%emt 0:13:38]} Bxc5 {[%emt 0:06:34]} 23. dxc5 {[%emt 0:01:57]} Nd3 {[%emt 0:00:06]} 24. Re3 {[%emt 0:08:13]} Qd5 {[%emt 0:08:02] [#]} 25. Bd6 {[%emt 0:01:47] White wants to mate with Re8+.} h6 {[%emt 0:00:03]} 26. b3 {[%emt 0:04:50]} ({Resist} 26. Re8+ Kh7 $14) 26... Ra7 {[%emt 0:01:57]} 27. bxc4 {[%emt 0:00:13]} (27. Qb1 $16 {Strongly threatening bxc4.} Kh7 28. Kh2) 27... bxc4 $11 {[%emt 0:00:06]} 28. Re8+ {[%emt 0:00:41]} Kh7 {[%emt 0:00:16]} 29. Qe2 {[%emt 0:00:24]} Bc6 {[%emt 0:05:50]} 30. Re7 {[%emt 0:01:35]} Rxe7 {[%emt 0:01:41]} 31. Qxe7 {[%emt 0:00:17]} Nb2 {[%emt 0:00:56]} 32. Qe2 {[%emt 0:01:52]} Nd3 {[%emt 0:02:35]} (32... Na4 $5 {[%cal Ra4c3]}) 33. Qe3 {[%emt 0:00:20]} Nb2 {[%emt 0:00:42]} 34. Qe2 {[%emt 0:02:54]} Nd3 {[%emt 0:00:03]} 35. Qe3 {[%emt 0:00:06]} Nb2 {[%emt 0:00:03]} 36. Qe2 {[%emt 0:01:18] Weighted Error Value: White=0.16 (very precise) /Black=0.12 (very precise)} 1/2-1/2